bitfinex-derivatives/quotes_ETHF0:USTF0_20251223
["timestamp","ask_amount","ask_price","bid_price","bid_amount"]
[1766492390056,1.60865963,2960.5,2959.4,0.026]
[1766492390456,5.871,2960.4,2959.4,0.026]
[1766492390759,1.58305963,2960.5,2959.4,0.026]
[1766492391058,5.871,2960.3,2959.4,0.026]
[1766492391451,1.58305963,2960.5,2959.4,0.026]
[1766492391657,5.036,2960.4,2959.4,0.026]
[1766492391859,1.58305963,2960.5,2959.4,0.026]
[1766492392058,5.036,2960.4,2959.4,0.026]
[1766492393255,5.036,2960.4,2959.3,3.38407168]
[1766492394471,1.75204963,2960.6,2959.3,3.38407168]
[1766492394472,3.4046,2960.3,2959.4,0.0256]
[1766492394669,1.58305963,2960.6,2959.4,0.0256]
[1766492394974,0.0256,2960.4,2959.3,3.38407168]
[1766492395167,0.00507168,2961.0,2959.4,0.947]
[1766492395365,0.0256,2960.6,2959.4,0.9726]
[1766492395565,3.4046,2960.6,2959.4,0.9726]
[1766492395870,3.379,2960.6,2959.4,0.947]
[1766492396070,0.0256,2960.5,2959.5,0.0256]
[1766492396270,0.0256,2960.5,2959.6,3.379]
[1766492396471,3.379,2960.6,2959.6,3.379]
[1766492396670,0.0256,2960.5,2959.7,0.0256]
[1766492399573,0.0256,2960.5,2959.7,0.2756]
[1766492399776,3.379,2960.6,2959.7,0.25]
[1766492399977,0.02550001,2960.5,2959.8,0.0255]
[1766492400280,0.02550001,2960.5,2959.9,3.379]
[1766492400775,0.02550001,2960.5,2959.9,3.4045]
[1766492401472,0.02550001,2960.4,2959.3,0.00507168]
[1766492401678,7.29205963,2960.3,2959.3,0.00507168]
[1766492402269,0.0432,2960.2,2959.3,0.04827168]
[1766492402669,0.0432,2960.1,2959.3,0.04827168]
[1766492402983,3.379,2960.4,2959.4,3.379]
[1766492408377,1.58305963,2960.2,2959.3,0.00507168]
[1766492408676,3.379,2960.1,2959.3,0.00507168]
[1766492409279,1.58305963,2960.2,2959.3,0.00507168]
[1766492409479,1.58305963,2959.9,2959.1,3.38179628]
[1766492409669,3.379,2959.8,2959.1,3.38179628]
[1766492409870,3.379,2959.8,2959.0,0.0433]
[1766492409871,3.4223,2959.8,2959.0,0.0433]
[1766492410073,3.379,2959.8,2959.0,3.379]
[1766492410677,0.00507168,2959.7,2959.1,0.00507168]
[1766492410880,0.00507168,2959.7,2959.1,0.00814991]
[1766492411378,0.0434,2959.6,2959.1,0.00814991]
[1766492411678,0.04712414,2959.6,2959.1,0.00814991]
[1766492412579,0.04712414,2959.6,2959.0,0.0434]
[1766492412972,0.00372414,2959.6,2958.8,3.379]
[1766492413272,3.38272414,2959.6,2958.9,0.0435]
[1766492413780,3.38272414,2959.6,2959.0,0.00507168]
[1766492414184,3.38272414,2959.6,2959.1,0.0435]
[1766492415080,3.379,2959.6,2959.0,0.00507168]
[1766492415280,2.67112414,2959.6,2959.1,3.4225]
[1766492415676,2.67112414,2959.6,2959.1,3.379]
[1766492416181,2.67430082,2959.6,2959.1,3.379]
[1766492416377,0.00317668,2959.6,2959.1,3.379]
[1766492416683,3.379,2960.1,2959.2,0.05769999]
[1766492417083,0.0591,2960.0,2959.3,0.0577]
[1766492417277,1.58305963,2960.6,2959.4,3.379]
[1766492417478,0.00507168,2960.3,2959.4,3.379]
[1766492417785,3.379,2960.2,2959.5,0.0591]
[1766492418176,0.0601,2960.1,2959.5,0.0591]
[1766492419685,3.379,2960.2,2959.4,3.379]
[1766492419886,0.0601,2960.1,2959.5,0.0601]
[1766492420580,3.379,2960.2,2959.4,3.379]
[1766492423988,1.02597614,2960.1,2959.4,3.379]
[1766492425583,1.02597614,2959.9,2959.0,0.00507168]
[1766492425785,1.02597614,2959.9,2959.1,3.379]
[1766492426488,1.02597614,2959.7,2959.2,0.0356]
[1766492426983,1.02597614,2959.7,2959.1,3.379]
[1766492429294,4.44057614,2959.9,2959.1,3.379]
[1766492429484,4.40497614,2959.9,2959.1,3.379]
[1766492429885,3.379,2959.9,2959.1,3.379]
[1766492431596,3.379,2959.9,2959.0,0.00507168]
[1766492431792,3.379,2959.9,2959.0,3.38407168]
[1766492431992,0.0356,2959.8,2959.0,3.41967168]
[1766492432394,3.379,2959.9,2959.0,3.41967168]
[1766492432590,0.0356,2959.8,2959.0,3.38407168]
[1766492433096,3.379,2959.9,2959.1,0.1524]
[1766492433396,3.379,2959.9,2959.1,0.1168]
[1766492433591,3.379,2959.9,2959.0,3.38407168]
[1766492433894,1.61845609,2959.8,2959.0,3.41937168]
[1766492434198,1.61845609,2959.8,2959.0,0.00507168]
[1766492434392,1.58315609,2959.8,2959.0,0.00507168]
[1766492434992,1.75215609,2960.2,2959.0,0.00507168]
[1766492435196,0.0353,2959.7,2959.0,0.00507168]
[1766492435391,3.379,2959.6,2959.0,0.00507168]
[1766492435799,3.4143,2959.6,2959.0,0.04037168]
[1766492437902,4.96215609,2959.6,2957.9,0.27549245]
[1766492438198,0.0353,2959.5,2958.0,9.3773]
[1766492438594,4.96215609,2959.6,2958.0,9.342]
[1766492438797,0.0362,2959.5,2958.1,0.03619999]
[1766492438997,0.0362,2959.5,2958.5,0.00507168]
[1766492439196,4.96215609,2959.6,2958.6,3.379]
[1766492439397,0.0362,2959.4,2958.6,3.41519999]
[1766492439598,4.96215609,2959.6,2958.6,3.379]
[1766492439894,0.0362,2959.3,2958.7,0.03619999]
[1766492440088,3.379,2959.4,2958.7,0.03619999]
[1766492440289,3.38,2960.0,2958.8,6.221]
[1766492440498,3.38,2960.0,2958.9,3.38]
[1766492440699,0.0362,2959.9,2958.9,3.41619999]
[1766492440902,0.0362,2959.9,2958.9,44.18]
[1766492441200,0.0362,2959.9,2959.0,0.0368]
[1766492441596,0.0362,2959.9,2958.9,44.18]
[1766492441799,0.0362,2959.9,2959.0,0.0365]
[1766492442200,0.0362,2959.9,2958.9,44.18]
[1766492442400,0.0362,2959.9,2959.0,0.0365]
[1766492442802,3.4164,2960.0,2959.1,3.38]
[1766492443202,3.4164,2960.0,2959.2,0.0364]
[1766492443406,3.38,2960.0,2959.1,3.38]
[1766492444304,0.0364,2960.0,2959.2,0.0364]
[1766492449105,0.00430656,2960.6,2959.1,3.38]
[1766492449307,3.38407168,2960.3,2959.1,3.38]
[1766492449915,0.037,2960.2,2959.2,0.037]
[1766492450922,0.00507168,2960.0,2959.2,0.037]
[1766492451323,0.00507168,2960.0,2959.1,3.38]
[1766492451515,0.00507168,2960.0,2959.2,0.0394]
[1766492452014,0.00507168,2960.0,2959.3,0.0394]
[1766492452325,0.00507168,2960.0,2959.4,3.379]
[1766492459128,1.03018157,2960.6,2959.4,3.379]
[1766492459330,3.379,2960.5,2959.5,6.312]
[1766492459630,3.41840001,2960.5,2959.5,6.3514]
[1766492459838,3.379,2960.5,2959.5,6.312]
[1766492460136,0.00507168,2960.3,2959.5,6.312]
[1766492460430,0.00430656,2960.6,2959.7,1.02587501]
[1766492460623,0.00430656,2960.6,2959.8,3.379]
[1766492460928,0.00430656,2960.6,2959.8,3.4186]
[1766492461128,1.02587501,2960.5,2959.8,0.0396]
[1766492461329,0.00507168,2960.4,2959.9,3.379]
[1766492463121,1.02587501,2960.2,2958.5,0.17417168]
[1766492463431,1.02587501,2959.8,2958.6,18.139]
[1766492463622,1.02587501,2959.6,2958.6,18.139]
[1766492463828,1.02587501,2959.4,2958.6,9.69]
[1766492464029,1.02587501,2959.4,2958.7,0.0224]
[1766492464228,0.0224,2959.5,2958.7,0.0224]
[1766492464435,0.0224,2959.5,2958.6,9.69]
[1766492464733,4.40487501,2959.6,2958.7,0.0224]
[1766492464734,3.379,2959.6,2958.7,0.0224]
[1766492465128,0.0224,2959.5,2958.6,9.69]
[1766492468732,3.379,2959.6,2958.6,9.69]
[1766492472927,4.40487501,2959.6,2958.6,9.69]
[1766492474136,0.16901,2960.2,2958.6,9.69]
[1766492474438,1.04797501,2960.1,2958.7,0.0221]
[1766492474642,4.40587501,2960.1,2958.7,0.0221]
[1766492474938,4.40587501,2960.1,2958.6,10.71587501]
[1766492475142,1.02587501,2959.9,2958.7,0.0221]
[1766492475338,1.02587501,2959.7,2958.7,0.0221]
[1766492475536,1.02587501,2959.3,2958.8,3.4021]
[1766492475734,1.02587501,2959.3,2958.8,9.691]
[1766492476045,1.02587501,2959.3,2958.8,9.6988]
[1766492476834,0.0078,2959.4,2958.8,9.6988]
[1766492477031,4.40587501,2959.6,2958.8,9.691]
[1766492477345,3.38,2959.9,2958.9,0.0065]
[1766492477546,1.02587501,2960.0,2958.9,0.0065]
[1766492477742,3.38,2959.9,2958.8,9.691]
[1766492477944,4.40587501,2960.0,2959.0,0.0219]
[1766492478237,1.02587501,2959.8,2959.1,3.38]
[1766492478438,1.02587501,2959.8,2959.2,1.884]
[1766492479030,1.02587501,2959.6,2959.1,0.0219]
[1766492479341,1.02587501,2959.6,2959.1,3.38]
[1766492479540,1.04777501,2959.6,2959.1,3.38]
[1766492480042,0.0219,2959.6,2959.1,3.38]
[1766492480543,1.02587501,2959.8,2959.1,3.38]
[1766492481238,1.02587501,2959.6,2959.1,3.38]
[1766492481844,1.04777501,2959.6,2959.1,3.38]
[1766492482545,3.38,2959.7,2959.1,3.38]
[1766492483044,3.38,2959.7,2959.2,0.0219]
[1766492483245,3.38,2959.7,2959.1,3.38]
[1766492483439,1.02587501,2959.9,2959.1,3.38]
[1766492483638,1.04777501,2959.9,2959.2,0.0219]
[1766492484043,1.04777501,2959.9,2959.1,3.38]
[1766492484243,1.04777501,2959.9,2959.2,0.0219]
[1766492484644,1.04777501,2959.9,2959.1,3.38]
[1766492484845,1.02587501,2959.9,2959.2,0.0219]
[1766492485049,1.02587501,2959.6,2959.2,3.38]
[1766492485547,3.38,2960.0,2959.2,3.38]
[1766492485741,0.0219,2959.8,2959.2,3.4019]
[1766492486452,3.38,2959.9,2959.3,0.0219]
[1766492486851,3.38,2959.9,2959.2,3.38]
[1766492487046,3.38,2959.9,2959.3,0.0219]
[1766492487447,3.38,2959.9,2959.2,3.38]
[1766492487649,3.38,2959.9,2959.3,0.0219]
[1766492488052,3.38,2959.9,2959.4,0.0219]
[1766492488249,1.02587501,2960.1,2959.5,3.38]
[1766492488650,1.04777501,2960.1,2959.5,3.4019]
[1766492490656,1.02587501,2960.1,2959.5,3.38]
[1766492491653,3.38,2960.2,2959.5,3.38]
[1766492491849,1.02587501,2960.1,2959.5,3.38]
[1766492492848,1.02587501,2959.6,2958.5,0.00507168]
[1766492493053,1.02587501,2959.4,2958.6,3.379]
[1766492493250,1.02587501,2959.4,2958.6,3.4009]
[1766492493450,1.02587501,2959.4,2958.6,3.379]
[1766492494258,1.02587501,2959.6,2958.6,3.379]
[1766492494557,1.02587501,2959.6,2958.7,0.0219]
[1766492494950,0.0224,2959.6,2958.6,3.3571]
[1766492495150,4.40487501,2959.8,2958.6,3.3571]
[1766492495360,4.40487501,2959.8,2958.7,0.0224]
[1766492495857,3.379,2959.8,2958.6,3.3571]
[1766492496160,4.42727501,2959.8,2958.7,0.0224]
[1766492496656,4.42727501,2959.8,2958.6,3.3571]
[1766492496856,4.40487501,2959.8,2958.7,0.0224]
[1766492497348,0.0224,2959.7,2958.6,3.3571]
[1766492498259,0.0224,2959.7,2958.7,0.0224]
[1766492498761,0.0224,2959.7,2958.6,3.3571]
[1766492498951,0.0224,2959.7,2958.7,0.0215]
[1766492499560,0.0224,2959.7,2958.6,3.3571]
[1766492499752,0.0224,2959.7,2958.7,0.0215]
[1766492500155,0.0224,2959.7,2958.6,3.3571]
[1766492500357,0.0224,2959.7,2958.7,0.0215]
[1766492500964,4.40487501,2959.8,2958.6,3.3571]
[1766492501163,0.0208,2959.7,2958.7,0.0208]
[1766492501557,4.40487501,2959.8,2958.6,3.3571]
[1766492501757,0.0208,2959.6,2958.7,0.0208]
[1766492502357,0.0208,2959.6,2958.8,0.0208]
[1766492502562,4.40487501,2959.8,2958.9,3.38]
[1766492503068,1.02587501,2959.5,2958.5,0.00507168]
[1766492503263,1.02587501,2959.2,2958.6,3.38]
[1766492503463,1.02587501,2959.2,2958.6,3.4008]
[1766492505066,3.38,2959.4,2958.6,3.4008]
[1766492505365,1.04667501,2959.3,2958.6,3.4008]
[1766492505865,1.02587501,2959.3,2958.5,3.38507168]
[1766492506267,0.0208,2959.2,2958.6,0.0208]
[1766492507659,1.02587501,2959.3,2958.6,0.0208]
[1766492507865,0.0208,2959.2,2958.6,0.0208]
[1766492508270,1.02587501,2959.3,2958.5,3.38507168]
[1766492508465,0.0208,2959.1,2958.5,3.40587168]
[1766492509363,3.4008,2959.1,2958.5,3.40587168]
[1766492509565,1.02587501,2958.8,2958.1,0.00438342]
[1766492509770,1.02587501,2958.6,2958.1,0.00438342]
[1766492509971,1.02587501,2958.6,2956.9,0.43632542]
[1766492510269,1.02587501,2958.4,2957.9,0.0201]
[1766492510470,4.41094669,2958.4,2957.9,0.02517168]
[1766492510666,4.41094669,2958.4,2957.6,3.38]
[1766492510870,0.0201,2958.3,2957.6,3.38]
[1766492511071,0.0201,2958.3,2957.6,3.38260108]
[1766492511263,4.41425173,2958.4,2957.7,0.0184]
[1766492511665,1.03425173,2958.4,2957.8,0.00507168]
[1766492511870,3.38,2958.3,2957.8,0.00507168]
[1766492512471,0.00837672,2958.4,2957.9,0.0184]
[1766492512676,3.38,2958.5,2957.9,3.3984]
[1766492512874,3.38,2958.5,2957.9,3.38]
[1766492513075,3.38,2958.5,2958.0,0.0185]
[1766492513476,3.38,2958.5,2957.9,3.38]
[1766492513779,3.38851523,2958.5,2957.8,0.00507168]
[1766492513982,3.38851523,2958.5,2957.9,3.38]
[1766492514480,3.38851523,2958.5,2958.0,0.0185]
[1766492514683,0.00851523,2958.5,2958.0,0.0185]
[1766492514888,0.00851523,2958.5,2957.9,3.38]
[1766492515589,3.38,2958.7,2958.0,0.0185]
[1766492515790,4.40708757,2958.7,2958.0,0.0185]
[1766492515980,1.02708757,2958.4,2957.9,3.38]
[1766492516286,1.02708757,2958.2,2957.9,3.38]
[1766492516686,0.00507168,2958.3,2957.9,3.38]
[1766492517678,0.00507168,2958.3,2957.8,0.00507168]
[1766492517679,0.00835999,2958.3,2957.8,0.00507168]
[1766492517979,0.00835999,2958.3,2957.6,0.00260108]
[1766492518179,1.03544756,2958.3,2957.6,0.00260108]
[1766492518679,1.02708757,2958.1,2957.7,3.40909999]
[1766492518881,1.03544756,2958.3,2957.7,3.40909999]
[1766492519275,1.03544756,2958.3,2957.7,3.38]
[1766492520292,1.06504756,2958.3,2957.7,3.40959999]
[1766492520489,0.00835999,2958.3,2957.7,3.38]
[1766492520893,0.00835999,2958.3,2957.8,0.0295]
[1766492521289,0.00835999,2958.3,2957.7,3.38]
[1766492521492,3.381,2958.7,2957.8,1.02708757]
[1766492521698,1.02708757,2959.1,2958.0,1.02708757]
[1766492521892,1.02708757,2958.9,2958.1,3.381]
[1766492522288,1.02708757,2958.7,2958.1,3.381]
[1766492522488,1.03592636,2958.7,2958.2,0.02969999]
[1766492522982,1.03592636,2958.7,2958.1,3.381]
[1766492523182,1.03592636,2958.7,2958.2,0.02969999]
[1766492523381,1.03592636,2958.7,2958.1,3.381]
[1766492524097,1.03592636,2958.7,2958.2,0.0293]
[1766492524994,0.00883879,2958.7,2958.1,3.381]
[1766492525189,3.381,2958.8,2958.2,0.0293]
[1766492525389,1.05638757,2958.9,2958.2,0.0293]
[1766492525594,1.05638757,2958.9,2958.1,3.381]
[1766492525789,1.02708757,2958.9,2958.2,0.0294]
[1766492526290,0.00507168,2958.8,2958.1,3.33180001]
[1766492526496,0.00507168,2958.8,2958.2,0.0294]
[1766492526696,0.0043569,2958.9,2958.2,0.0294]
[1766492526894,0.0043569,2958.9,2958.1,3.33180001]
[1766492526895,0.0043569,2958.9,2958.1,4.35888758]
[1766492527088,3.381,2959.2,2958.3,1.02708757]
[1766492527289,3.381,2959.2,2958.4,3.381]
[1766492527697,1.02708757,2959.3,2958.5,0.0304]
[1766492527993,0.00357227,2959.3,2958.5,0.0304]
[1766492528195,1.06125984,2959.3,2958.4,3.381]
[1766492528693,1.03065984,2959.3,2958.5,0.0306]
[1766492529093,1.06125984,2959.3,2958.4,3.381]
[1766492529995,1.06125984,2959.3,2958.3,1.02708757]
[1766492530200,1.06125984,2959.3,2958.4,9.7216]
[1766492530702,1.06125984,2959.3,2958.4,50.491]
[1766492530893,1.06125984,2959.3,2958.5,0.0306]
[1766492531494,1.06125984,2959.3,2958.4,50.491]
[1766492531702,1.03065984,2959.3,2958.5,0.0306]
[1766492531898,0.00357227,2959.3,2958.5,0.0306]
[1766492532093,0.03417227,2959.3,2958.4,50.491]
[1766492533597,0.00357227,2959.3,2958.4,50.491]
[1766492533793,0.00357227,2959.3,2958.4,51.51808757]
[1766492534693,0.00357227,2959.3,2958.4,50.491]
[1766492534895,0.00357227,2959.3,2958.4,51.51808757]
[1766492537395,0.00357227,2959.3,2958.6,1.02708757]
[1766492537595,1.02708757,2959.6,2958.7,3.38]
[1766492537905,3.38,2959.5,2958.8,7.38508757]
[1766492538099,3.38,2959.6,2958.9,0.00507168]
[1766492538297,0.0141,2959.7,2958.9,0.01917167]
[1766492538498,3.38,2959.6,2958.9,0.00507168]
[1766492538998,3.38,2959.6,2959.0,0.01409999]
[1766492539395,3.38,2959.6,2958.9,0.00507168]
[1766492539598,0.00436807,2959.7,2959.0,3.39409999]
[1766492539901,3.38436807,2959.7,2959.0,3.39409999]
[1766492540203,3.38436807,2959.7,2959.0,3.38]
[1766492540204,3.39846807,2959.7,2959.0,3.38]
[1766492540402,0.00436807,2959.7,2959.1,0.01409999]
[1766492540703,3.3941,2959.9,2959.1,0.01409999]
[1766492540904,3.3941,2959.9,2959.0,4.40708757]
[1766492541106,3.3941,2959.9,2959.1,0.01419999]
[1766492541298,3.3941,2959.9,2959.2,6.356]
[1766492541495,0.16894,2961.3,2959.8,1.02708757]
[1766492541803,1.02708757,2960.2,2959.6,2.625]
[1766492542004,1.02708757,2960.2,2959.7,3.38]
[1766492542205,1.04128757,2960.2,2959.7,3.38]
[1766492542399,0.0142,2960.2,2959.6,0.01419999]
[1766492542600,0.01817112,2960.2,2959.6,0.01733906]
[1766492543307,0.00397112,2960.2,2959.6,0.00313907]
[1766492546302,1.02708757,2960.1,2959.5,3.38]
[1766492546507,1.02708757,2959.9,2959.4,3.38]
[1766492546702,1.02708757,2959.9,2959.4,3.39419999]
[1766492546908,1.02708757,2959.9,2959.4,3.38]
[1766492547406,1.02708757,2959.9,2959.4,0.00334198]
[1766492547806,1.06188757,2959.9,2959.4,0.00334198]
[1766492550810,1.06188757,2959.9,2958.9,0.00507168]
[1766492550811,1.02708757,2959.5,2958.9,0.00507168]
[1766492551010,5.088,2960.1,2958.5,3.38]
[1766492551011,1.02708757,2959.1,2958.5,3.38]
[1766492551209,4.40708757,2959.6,2958.6,3.38]
[1766492551210,4.40708757,2959.3,2958.6,3.38]
[1766492551508,4.44188757,2959.3,2958.6,3.38]
[1766492552010,4.44188757,2959.3,2958.6,3.38367989]
[1766492552205,0.00507168,2959.2,2958.7,0.00507168]
[1766492556106,1.02708757,2959.6,2958.7,0.00507168]
[1766492556308,3.38,2959.5,2958.7,6.35707168]
[1766492556510,0.0346,2959.4,2958.8,0.0346]
[1766492556713,1.02708757,2959.6,2958.9,3.38]
[1766492556914,4.44178757,2959.6,2958.9,3.38]
[1766492557114,4.40708757,2959.6,2958.9,3.38]
[1766492557311,4.44178757,2959.6,2959.0,0.03469999]
[1766492558020,3.4147,2959.6,2959.0,0.03469999]
[1766492558721,3.38,2959.8,2958.9,3.38]
[1766492559021,3.4147,2959.8,2959.0,0.03469999]
[1766492559421,3.4147,2959.8,2958.9,3.38]
[1766492559714,3.38,2959.8,2959.0,0.03469999]
[1766492560222,3.4147,2959.8,2958.9,3.38]
[1766492560423,3.38,2959.8,2958.9,3.38]
[1766492560815,0.0347,2959.8,2959.0,0.03469999]
[1766492561114,3.4147,2959.8,2959.0,0.03469999]
[1766492561315,3.4147,2959.8,2958.9,3.38]
[1766492561614,3.4147,2959.8,2959.0,0.03469999]
[1766492561814,3.4147,2959.8,2958.9,3.38]
[1766492562016,3.4147,2959.8,2959.0,0.03469999]
[1766492562725,3.4147,2959.8,2958.9,3.38]
[1766492562923,3.4147,2959.8,2959.0,0.03469999]
[1766492563324,3.38,2959.8,2958.9,3.38]
[1766492563517,3.4147,2959.8,2959.0,0.03469999]
[1766492564025,3.4147,2959.8,2958.9,3.38]
[1766492564226,3.4147,2959.8,2959.0,0.03469999]
[1766492564525,0.0347,2959.8,2959.0,1.06178756]
[1766492564727,3.38,2960.0,2959.0,1.02708757]
[1766492564920,0.0347,2959.9,2959.1,0.03469999]
[1766492565120,0.0347,2959.9,2959.2,3.38]
[1766492565617,0.0347,2959.9,2959.3,0.03469999]
[1766492568825,3.38,2960.0,2959.2,4.40708757]
[1766492569029,3.38,2960.0,2959.2,3.38]
[1766492580737,0.00397112,2960.2,2959.2,4.40603893]
[1766492581042,0.00397112,2960.2,2959.5,1.02603893]
[1766492581237,0.00397112,2960.2,2959.6,3.379]
[1766492581640,0.02260001,2960.5,2959.6,3.4016]
[1766492581939,0.02260001,2960.5,2959.6,3.379]
[1766492582137,3.379,2960.7,2959.7,0.0225]
[1766492582333,3.379,2960.8,2959.7,1.04853893]
[1766492582642,0.0225,2960.6,2959.9,1.02603893]
[1766492582839,0.023,2960.7,2960.0,3.379]
[1766492583134,0.00348266,2960.8,2960.2,1.02603893]
[1766492583336,0.00348266,2960.8,2960.3,3.379]
[1766492583533,3.379,2961.2,2960.3,3.379]
[1766492583735,0.023,2961.0,2960.3,3.402]
[1766492584129,3.379,2961.2,2960.3,3.379]
[1766492584333,3.4025,2961.2,2960.4,1.04953893]
[1766492584736,3.40664188,2961.2,2960.4,1.02603893]
[1766492584932,1.19492893,2962.2,2960.7,1.02603893]
[1766492585134,1.02603893,2962.0,2960.8,3.379]
[1766492585544,0.0235,2961.9,2960.9,0.0235]
[1766492585843,3.379,2961.8,2960.9,0.0235]
[1766492586041,3.3829699,2961.8,2960.9,0.00307342]
[1766492586441,0.0234,2961.7,2960.9,0.02647342]
[1766492586642,0.0234,2961.7,2960.9,1.02911235]
[1766492586941,0.0234,2961.7,2960.9,0.00307342]
[1766492587142,0.0234,2961.7,2961.0,0.0224]
[1766492587442,0.0234,2961.7,2961.1,3.379]
[1766492587834,0.0234,2961.7,2961.1,3.4013]
[1766492593740,3.3829699,2961.8,2961.1,3.379]
[1766492599451,3.3829699,2961.8,2961.1,4.40503893]
[1766492599747,3.3829699,2961.8,2961.3,1.02603893]
[1766492600052,3.3829699,2961.8,2961.1,4.40503893]
[1766492601852,0.0039699,2961.8,2961.1,10.74103893]
[1766492603554,0.0039699,2961.8,2961.1,1.02603893]
[1766492603755,0.0039699,2961.8,2961.2,9.713]
[1766492607262,0.0039699,2961.8,2961.3,1.02603893]
[1766492607460,5.87,2962.1,2961.3,1.02603893]
[1766492607759,3.378,2962.2,2961.3,1.02603893]
[1766492607961,3.378,2962.2,2961.4,0.0015]
[1766492608161,3.378,2962.2,2961.5,3.377]
[1766492608456,3.38188586,2962.2,2961.5,3.377]
[1766492609152,3.38188586,2962.2,2961.6,0.0015]
[1766492610957,0.00388586,2962.2,2961.6,0.0015]
[1766492611161,3.377,2962.7,2961.8,1.02603893]
[1766492611366,3.377,2962.7,2962.0,0.00507168]
[1766492612054,0.00321878,2962.7,2962.0,1.03111061]
[1766492612359,0.00321878,2962.7,2962.0,0.00507168]
[1766492612555,4.40303893,2962.6,2961.9,3.377]
[1766492612754,4.40303893,2962.6,2961.9,2.7452]
[1766492612954,4.40303893,2962.6,2961.9,2.4293]
[1766492613153,4.40303893,2962.6,2961.5,3.377]
[1766492613154,1.02603893,2962.2,2961.5,3.377]
[1766492613359,3.377,2962.3,2961.5,3.377]
[1766492613560,0.00507168,2962.2,2961.5,3.377]
[1766492614473,0.00507168,2962.2,2961.5,3.3985]
[1766492614474,0.0215,2962.1,2961.5,3.3985]
[1766492614769,0.0215,2962.1,2961.5,3.40357168]
[1766492614968,0.00507168,2962.2,2961.5,3.38207168]
[1766492615265,3.377,2962.6,2961.6,1.04753893]
[1766492615663,3.3985,2962.6,2961.6,1.02603893]
[1766492616171,0.00507168,2962.4,2961.6,1.02603893]
[1766492616563,0.00507168,2962.4,2961.7,0.0216]
[1766492616864,0.00507168,2962.4,2961.8,3.377]
[1766492617360,0.00507168,2962.4,2961.8,4.40303893]
[1766492617968,3.377,2962.6,2961.8,4.40303893]
[1766492618161,3.377,2962.6,2961.9,0.0215]
[1766492618362,0.02471878,2962.7,2961.9,0.0215]
[1766492618576,0.00321878,2962.7,2961.8,9.99303893]
[1766492621369,3.377,2963.1,2962.0,1.02603893]
[1766492621565,3.377,2963.1,2962.1,3.377]
[1766492621764,0.0217,2963.0,2962.1,3.3987]
[1766492621968,0.0217,2963.0,2962.1,3.377]
[1766492622164,0.00278455,2963.0,2962.2,0.0217]
[1766492622365,0.00278455,2963.0,2962.2,1.04773893]
[1766492622565,0.00278455,2963.0,2962.3,6.329]
[1766492622772,0.00278455,2963.0,2962.4,3.377]
[1766492623265,0.00278455,2963.0,2962.1,1.02603893]
[1766492623566,0.00278455,2963.0,2962.2,9.706]
[1766492627279,0.00278455,2963.0,2962.3,1.02603893]
[1766492628979,3.377,2963.1,2962.3,1.02603893]
[1766492629175,0.0120158,2963.1,2962.5,1.02603893]
[1766492629373,3.3977,2963.4,2962.6,3.376]
[1766492629767,3.3977,2963.4,2962.7,0.089]
[1766492629972,3.40013941,2963.4,2962.7,0.089]
[1766492630175,3.40013941,2963.4,2962.6,3.376]
[1766492630373,0.02413941,2963.4,2962.7,0.089]
[1766492630575,3.37843941,2963.4,2962.6,3.376]
[1766492631075,3.46743941,2963.4,2962.7,0.089]
[1766492631284,0.00243941,2963.4,2962.8,1.02603893]
[1766492631475,0.16875,2964.8,2963.1,1.02603893]
[1766492631669,9.46703893,2964.6,2963.7,0.00506302]
[1766492631873,1.03107313,2964.4,2963.5,3.376]
[1766492632080,3.376,2964.3,2963.5,3.376]
[1766492632382,1.02603893,2964.2,2963.5,3.376]
[1766492632582,1.02603893,2964.2,2963.5,3.37888063]
[1766492632882,3.38002843,2964.3,2963.6,0.00506302]
[1766492632883,0.0892,2964.1,2963.6,0.00506302]
[1766492633078,3.38002843,2964.3,2963.6,0.00506302]
[1766492633275,0.0892,2964.1,2963.6,0.00506302]
[1766492633680,1.02603893,2963.7,2962.7,3.376]
[1766492633875,3.376,2963.6,2962.7,3.376]
[1766492634279,3.46890001,2963.6,2962.8,0.0929]
[1766492634771,3.46890001,2963.6,2962.9,0.00506302]
[1766492635174,3.46890001,2963.6,2963.0,0.0929]
[1766492635777,3.376,2963.6,2963.1,0.0929]
[1766492636083,3.376,2963.6,2962.9,0.00506302]
[1766492637674,4.39963818,2963.6,2962.9,0.00506302]
[1766492639286,0.16876,2964.5,2963.5,1.02363818]
[1766492639489,1.02766661,2964.3,2963.6,3.376]
[1766492639681,0.09290001,2964.2,2963.5,3.376]
[1766492640072,0.09290001,2964.2,2963.5,4.39963818]
[1766492640285,3.38002843,2964.3,2963.6,0.0929]
[1766492640485,3.38002843,2964.3,2963.5,4.39963818]
[1766492640883,1.02363818,2963.7,2962.9,0.00506302]
[1766492641186,1.02363818,2963.7,2962.9,3.38106302]
[1766492641582,0.09290001,2963.6,2962.9,3.47396302]
[1766492641979,0.09290001,2963.6,2962.9,0.00506302]
[1766492642185,0.09290001,2963.6,2962.9,3.38006302]
[1766492642387,0.09290001,2963.6,2963.0,0.0928]
[1766492643388,1.02363818,2963.7,2962.9,3.38006302]
[1766492643586,0.09240001,2963.6,2963.0,0.0924]
[1766492653602,3.376,2963.8,2962.9,3.38006302]
[1766492653802,0.16879,2963.9,2962.9,3.20016302]
[1766492654800,0.16879,2963.9,2963.1,0.00506302]
[1766492655001,0.16879,2963.9,2963.2,3.375]
[1766492655202,0.16879,2963.9,2963.2,3.4704]
[1766492655405,0.16879,2963.9,2963.2,3.375]
[1766492656300,3.54379,2963.9,2963.2,3.375]
[1766492656800,3.54379,2963.9,2963.3,0.0954]
[1766492657395,3.54379,2963.9,2963.2,3.375]